[Event "FINAL CAMPEONATO ABSOLUTO DE AJEDREZ CHILE 2018"]
[Site "CENTRO CULTURAL LO PRADO, Chile"]
[Date "2018.02.28"]
[Round "7.5"]
[White "FUENTES PARRA, Victor Ignacio"]
[Black "SALINAS HERRERA, Pablo Patrici"]
[Result "0-1"]
[TimeControl "90 minutos mas 30 segundos de incremento por movida"]
[BlackTitle "IM"]
[WhiteElo "2148"]
[BlackElo "2453"]

1. d4 {[%clk 01:30:59]} Nf6 {[%clk 01:20:41]} {[%emt 00:10:19]} 2. Nf3 {[%clk
01:30:52]} {[%emt 00:00:36]} d6 {[%clk 01:21:07]} {[%emt 00:00:06]} 3. Nc3
{[%clk 01:30:29]} {[%emt 00:00:53]} g6 {[%clk 01:19:45]} {[%emt 00:01:52]} 4.
Bf4 {[%clk 01:30:09]} {[%emt 00:00:49]} Bg7 {[%clk 01:19:47]} {[%emt 00:00:29]}
5. Qd2 {[%clk 01:30:11]} {[%emt 00:00:28]} O-O {[%clk 01:17:57]} {[%emt
00:02:20]} 6. h4 {[%clk 01:29:51]} {[%emt 00:00:51]} c5 {[%clk 01:16:35]}
{[%emt 00:01:52]} 7. Bh6 {[%clk 01:29:00]} {[%emt 00:01:20]} cxd4 {[%clk
01:14:10]} {[%emt 00:02:55]} 8. Nxd4 {[%clk 01:29:09]} {[%emt 00:00:19]} Bxh6
{[%clk 01:10:24]} {[%emt 00:04:18]} 9. Qxh6 {[%clk 01:29:33]} {[%emt 00:00:06]}
Qa5 {[%clk 01:08:22]} {[%emt 00:02:32]} 10. f3 {[%clk 01:21:44]} {[%emt
00:08:20]} Nc6 {[%clk 00:59:27]} {[%emt 00:09:25]} 11. O-O-O {[%clk 01:17:37]}
{[%emt 00:04:37]} Nxd4 {[%clk 00:49:03]} {[%emt 00:10:55]} 12. Rxd4 {[%clk
01:17:59]} {[%emt 00:00:07]} Be6 {[%clk 00:30:28]} {[%emt 00:19:05]} 13. h5
{[%clk 00:29:37]} {[%emt 00:48:52]} Rac8 {[%clk 00:30:08]} {[%emt 00:00:50]} 14.
hxg6 {[%clk 00:27:10]} {[%emt 00:02:57]} fxg6 {[%clk 00:30:29]} {[%emt
00:00:09]} 15. Qe3 {[%clk 00:26:39]} {[%emt 00:01:01]} Qe5 {[%clk 00:25:06]}
{[%emt 00:05:54]} 16. Qxe5 {[%clk 00:23:40]} {[%emt 00:03:29]} dxe5 {[%clk
00:25:26]} {[%emt 00:00:10]} 17. Ra4 {[%clk 00:18:46]} {[%emt 00:05:24]} a6
{[%clk 00:25:36]} {[%emt 00:00:20]} 18. Ra5 {[%clk 00:18:42]} {[%emt 00:00:35]}
Nd7 {[%clk 00:25:32]} {[%emt 00:00:33]} 19. g3 {[%clk 00:12:58]} {[%emt
00:06:15]} Rfd8 {[%clk 00:18:02]} {[%emt 00:07:59]} 20. Bh3 {[%clk 00:11:03]}
{[%emt 00:02:25]} Bxh3 {[%clk 00:18:09]} {[%emt 00:00:24]} 21. Rxh3 {[%clk
00:11:31]} {[%emt 00:00:01]} Nc5 {[%clk 00:18:30]} {[%emt 00:00:09]} 22. Na4
{[%clk 00:11:20]} {[%emt 00:00:41]} Nd7 {[%clk 00:14:47]} {[%emt 00:04:13]} 23.
Rd5 {[%clk 00:11:28]} {[%emt 00:00:22]} e4 {[%clk 00:13:29]} {[%emt 00:01:48]}
24. Rh1 {[%clk 00:00:55]} {[%emt 00:11:02]} exf3 {[%clk 00:10:47]} {[%emt
00:03:12]} 25. exf3 {[%clk 00:01:15]} {[%emt 00:00:10]} Nf6 {[%clk 00:09:02]}
{[%emt 00:02:15]} 26. Re5 {[%clk 00:01:30]} {[%emt 00:00:15]} Rc7 {[%clk
00:09:02]} {[%emt 00:00:30]} 27. Nc3 {[%clk 00:01:09]} {[%emt 00:00:51]} Rcd7
{[%clk 00:05:21]} {[%emt 00:04:12]} 28. Rhe1 {[%clk 00:00:57]} {[%emt
00:00:41]} Kf7 {[%clk 00:04:50]} {[%emt 00:01:01]} 29. g4 {[%clk 00:00:48]}
{[%emt 00:00:40]} h5 {[%clk 00:04:20]} {[%emt 00:01:00]} 30. gxh5 {[%clk
00:00:56]} {[%emt 00:00:22]} gxh5 {[%clk 00:04:43]} {[%emt 00:00:07]} 31. Ne4
{[%clk 00:00:35]} {[%emt 00:00:51]} Nxe4 {[%clk 00:05:06]} {[%emt 00:00:07]} 32.
R5xe4 {[%clk 00:01:00]} {[%emt 00:00:06]} Rh8 {[%clk 00:05:31]} {[%emt
00:00:05]} 33. Rf4+ {[%clk 00:01:17]} {[%emt 00:00:13]} Ke8 {[%clk 00:05:55]}
{[%emt 00:00:06]} 34. Rf5 {[%clk 00:01:01]} {[%emt 00:00:46]} h4 {[%clk
00:05:52]} {[%emt 00:00:33]} 35. Rg5 {[%clk 00:00:43]} {[%emt 00:00:47]} Rh7
{[%clk 00:06:07]} {[%emt 00:00:15]} 36. Rg4 {[%clk 00:00:42]} {[%emt 00:00:32]}
Rd6 {[%clk 00:05:40]} {[%emt 00:00:58]} 37. Rh1 {[%clk 00:00:48]} {[%emt
00:00:23]} h3 {[%clk 00:05:32]} {[%emt 00:00:38]} 38. Rh2 {[%clk 00:01:07]}
{[%emt 00:00:11]} Rh5 {[%clk 00:05:23]} {[%emt 00:00:39]} 39. Rg3 {[%clk
00:00:51]} {[%emt 00:00:46]} Rdh6 {[%clk 00:05:49]} {[%emt 00:00:04]} 40. Kd2
{[%clk 00:00:57]} {[%emt 00:00:24]} Kf7 {[%clk 00:06:03]} {[%emt 00:00:16]} 41.
Ke3 {[%clk 00:01:02]} {[%emt 00:00:25]} Kf6 {[%clk 00:06:26]} {[%emt 00:00:07]}
42. Rg4 {[%clk 00:00:39]} {[%emt 00:00:53]} Rg5 {[%clk 00:05:39]} {[%emt
00:01:18]} 43. Kf4 {[%clk 00:00:44]} {[%emt 00:00:25]} Rb5 {[%clk 00:04:09]}
{[%emt 00:01:59]} 44. b3 {[%clk 00:00:43]} {[%emt 00:00:31]} Ke6 {[%clk
00:04:16]} {[%emt 00:00:23]} 45. Kg3 {[%clk 00:00:56]} {[%emt 00:00:17]} Rbh5
{[%clk 00:04:37]} {[%emt 00:00:09]} 46. a3 {[%clk 00:00:35]} {[%emt 00:00:53]}
Kd6 {[%clk 00:04:17]} {[%emt 00:00:49]} 47. Rd4+ {[%clk 00:00:39]} {[%emt
00:00:26]} Kc6 {[%clk 00:04:04]} {[%emt 00:00:44]} 48. Rc4+ {[%clk 00:00:48]}
{[%emt 00:00:21]} Kb6 {[%clk 00:03:42]} {[%emt 00:00:52]} 49. Rb4+ {[%clk
00:00:58]} {[%emt 00:00:19]} Ka7 {[%clk 00:04:03]} {[%emt 00:00:09]} 50. Rg4
{[%clk 00:01:23]} {[%emt 00:00:05]} e5 {[%clk 00:02:33]} {[%emt 00:02:00]} 51.
f4 {[%clk 00:00:33]} {[%emt 00:01:20]} exf4+ {[%clk 00:02:57]} {[%emt
00:00:05]} 52. Kxf4 {[%clk 00:00:34]} {[%emt 00:00:29]} Rf6+ {[%clk 00:03:23]}
{[%emt 00:00:04]} 53. Ke3 {[%clk 00:00:37]} {[%emt 00:00:27]} Kb6 {[%clk
00:02:06]} {[%emt 00:01:47]} 54. Rg3 {[%clk 00:00:34]} {[%emt 00:00:31]} Rfh6
{[%clk 00:02:34]} {[%emt 00:00:04]} 55. c4 {[%clk 00:00:39]} {[%emt 00:00:25]}
Kc6 {[%clk 00:02:55]} {[%emt 00:00:08]} 56. b4 {[%clk 00:00:37]} {[%emt
00:00:32]} Kd6 {[%clk 00:01:00]} {[%emt 00:02:26]} 57. Kd3 {[%clk 00:00:36]}
{[%emt 00:00:31]} Ke5 {[%clk 00:01:06]} {[%emt 00:00:23]} 58. Rg7 {[%clk
00:00:36]} {[%emt 00:00:29]} Rh7 {[%clk 00:01:10]} {[%emt 00:00:26]} 59. Rxh7
{[%clk 00:00:41]} {[%emt 00:00:26]} Rxh7 {[%clk 00:01:35]} {[%emt 00:00:05]} 60.
Ke3 {[%clk 00:00:41]} {[%emt 00:00:30]} Rh4 {[%clk 00:01:45]} {[%emt 00:00:20]}
61. c5 {[%clk 00:00:54]} {[%emt 00:00:17]} Kd5 {[%clk 00:01:40]} {[%emt
00:00:35]} 62. Kd3 {[%clk 00:01:10]} {[%emt 00:00:14]} Rh7 {[%clk 00:02:02]}
{[%emt 00:00:07]} 63. Kc3 {[%clk 00:00:55]} {[%emt 00:00:45]} Kc6 {[%clk
00:01:39]} {[%emt 00:00:52]} 64. Kb3 {[%clk 00:00:41]} {[%emt 00:00:45]} Kb5
{[%clk 00:01:51]} {[%emt 00:00:18]} 65. a4+ {[%clk 00:00:34]} {[%emt 00:00:38]}
Kc6 {[%clk 00:02:18]} {[%emt 00:00:03]} 66. Kc3 {[%clk 00:00:51]} {[%emt
00:00:12]} Rh4 {[%clk 00:02:42]} {[%emt 00:00:05]} 67. Kb3 {[%clk 00:01:11]}
{[%emt 00:00:11]} a5 {[%clk 00:02:53]} {[%emt 00:00:19]} 68. bxa5 {[%clk
00:00:57]} {[%emt 00:00:44]} Kxc5 {[%clk 00:03:19]} {[%emt 00:00:04]} 69. Kc3
{[%clk 00:00:35]} {[%emt 00:00:53]} Rxa4 {[%clk 00:03:05]} {[%emt 00:00:45]} 70.
Kd3 {[%clk 00:00:37]} {[%emt 00:00:27]} Rxa5 {[%clk 00:03:20]} {[%emt
00:00:15]} 71. Rc2+ {[%clk 00:00:32]} {[%emt 00:00:35]} Kd5 {[%clk 00:03:33]}
{[%emt 00:00:16]} 72. Ke3 {[%clk 00:00:44]} {[%emt 00:00:18]} Ra3+ {[%clk
00:03:49]} {[%emt 00:00:14]} 73. Kf2 {[%clk 00:00:55]} {[%emt 00:00:18]} b5
{[%clk 00:04:15]} {[%emt 00:00:04]} 74. Kg1 {[%clk 00:00:39]} {[%emt 00:00:46]}
b4 {[%clk 00:04:41]} {[%emt 00:00:05]} 75. Kh2 {[%clk 00:00:48]} {[%emt
00:00:20]} Rc3 {[%clk 00:05:04]} {[%emt 00:00:07]} 76. Rd2+ {[%clk 00:01:09]}
{[%emt 00:00:10]} Kc4 {[%clk 00:05:30]} {[%emt 00:00:04]} 77. Rd8 {[%clk
00:01:23]} {[%emt 00:00:16]} b3 {[%clk 00:05:46]} {[%emt 00:00:14]} 78. Rb8
{[%clk 00:01:20]} {[%emt 00:00:33]} Kd3 {[%clk 00:06:02]} {[%emt 00:00:14]} 79.
Kxh3 {[%clk 00:01:27]} {[%emt 00:00:22]} Kc2 {[%clk 00:06:23]} {[%emt
00:00:10]} 80. Kg2 {[%clk 00:01:46]} {[%emt 00:00:11]} b2 {[%clk 00:06:43]}
{[%emt 00:00:11]} 0-1

[Event "FINAL CAMPEONATO ABSOLUTO DE AJEDREZ CHILE 2018"]
[Site "CENTRO CULTURAL LO PRADO, Chile"]
[Date "2018.02.28"]
[Round "7.6"]
[White "AGUIRRE CONTRERAS, Cristian Ro"]
[Black "VERGARA JOFRE, Felipe Andres"]
[Result "0-1"]
[TimeControl "90 minutos mas 30 segundos de incremento por movida"]
[WhiteTitle "FM"]
[BlackTitle "FM"]
[WhiteElo "2272"]
[BlackElo "2270"]

1. Nf3 {[%clk 01:30:52]} {[%emt 00:00:07]} d5 {[%clk 01:30:45]} {[%emt
00:00:16]} 2. b3 {[%clk 01:31:13]} {[%emt 00:00:09]} Bg4 {[%clk 01:27:39]}
{[%emt 00:03:35]} 3. Bb2 {[%clk 01:31:24]} {[%emt 00:00:19]} Nd7 {[%clk
01:27:24]} {[%emt 00:00:46]} 4. g3 {[%clk 01:29:22]} {[%emt 00:02:31]} Ngf6
{[%clk 01:26:09]} {[%emt 00:01:45]} 5. Bg2 {[%clk 01:29:36]} {[%emt 00:00:16]}
e6 {[%clk 01:25:24]} {[%emt 00:01:15]} 6. d3 {[%clk 01:29:44]} {[%emt
00:00:23]} Bd6 {[%clk 01:15:22]} {[%emt 00:10:32]} 7. Nbd2 {[%clk 01:30:00]}
{[%emt 00:00:14]} e5 {[%clk 01:15:11]} {[%emt 00:00:41]} 8. e4 {[%clk
01:27:44]} {[%emt 00:02:46]} d4 {[%clk 01:09:43]} {[%emt 00:05:58]} 9. O-O
{[%clk 01:28:02]} {[%emt 00:00:12]} c5 {[%clk 01:09:39]} {[%emt 00:00:34]} 10.
h3 {[%clk 01:28:20]} {[%emt 00:00:12]} Bh5 {[%clk 01:06:27]} {[%emt 00:03:43]}
11. a4 {[%clk 01:28:39]} {[%emt 00:00:11]} O-O {[%clk 01:05:50]} {[%emt
00:01:07]} 12. Qe1 {[%clk 01:29:03]} {[%emt 00:00:06]} b6 {[%clk 00:55:30]}
{[%emt 00:10:50]} 13. Nh4 {[%clk 01:29:24]} {[%emt 00:00:08]} Ne8 {[%clk
00:50:04]} {[%emt 00:05:57]} 14. f4 {[%clk 01:28:57]} {[%emt 00:00:58]} f6
{[%clk 00:50:31]} {[%emt 00:00:03]} 15. g4 {[%clk 01:22:58]} {[%emt 00:06:29]}
Bf7 {[%clk 00:49:53]} {[%emt 00:01:08]} 16. f5 {[%clk 01:23:26]} {[%emt
00:00:02]} g5 {[%clk 00:40:31]} {[%emt 00:09:52]} 17. fxg6 {[%clk 01:20:44]}
{[%emt 00:03:13]} hxg6 {[%clk 00:40:48]} {[%emt 00:00:13]} 18. Qg3 {[%clk
01:21:03]} {[%emt 00:00:10]} Ng7 {[%clk 00:40:46]} {[%emt 00:00:32]} 19. Nc4
{[%clk 01:20:04]} {[%emt 00:01:30]} Bc7 {[%clk 00:24:09]} {[%emt 00:17:08]} 20.
Bc1 {[%clk 01:18:57]} {[%emt 00:01:37]} Ne6 {[%clk 00:24:33]} {[%emt 00:00:05]}
21. Bh6 {[%clk 01:01:07]} {[%emt 00:18:20]} Nf4 {[%clk 00:23:09]} {[%emt
00:01:54]} 22. Rf2 {[%clk 01:01:19]} {[%emt 00:00:18]} Kh7 {[%clk 00:21:41]}
{[%emt 00:01:57]} 23. Bxf8 {[%clk 01:00:45]} {[%emt 00:01:05]} Nxf8 {[%clk
00:21:59]} {[%emt 00:00:12]} 24. Nd2 {[%clk 00:44:16]} {[%emt 00:16:58]} N8e6
{[%clk 00:18:20]} {[%emt 00:04:09]} 25. Nhf3 {[%clk 00:44:08]} {[%emt
00:00:38]} Qe7 {[%clk 00:11:50]} {[%emt 00:07:00]} 26. h4 {[%clk 00:44:10]}
{[%emt 00:00:28]} Rh8 {[%clk 00:11:35]} {[%emt 00:00:46]} 27. Nc4 {[%clk
00:41:34]} {[%emt 00:03:07]} Nf8 {[%clk 00:07:53]} {[%emt 00:04:13]} 28. Ncd2
{[%clk 00:41:19]} {[%emt 00:00:44]} N8e6 {[%clk 00:08:22]} 29. Raf1 {[%clk
00:41:29]} {[%emt 00:00:20]} Kg7 {[%clk 00:01:58]} {[%emt 00:06:54]} 30. Nc4
{[%clk 00:41:04]} {[%emt 00:00:56]} a6 {[%clk 00:00:58]} {[%emt 00:01:30]} 31.
g5 {[%clk 00:36:18]} {[%emt 00:05:16]} b5 {[%clk 00:01:23]} {[%emt 00:00:04]}
32. axb5 {[%clk 00:30:40]} {[%emt 00:06:08]} axb5 {[%clk 00:01:53]} 33. gxf6+
{[%clk 00:30:47]} {[%emt 00:00:22]} Qxf6 {[%clk 00:02:18]} {[%emt 00:00:06]} 34.
Ncxe5 {[%clk 00:30:59]} {[%emt 00:00:18]} Bxe5 {[%clk 00:01:02]} {[%emt
00:01:46]} 35. Nxe5 {[%clk 00:31:27]} {[%emt 00:00:02]} Qxe5 {[%clk 00:01:31]}
{[%emt 00:00:01]} 36. Rxf4 {[%clk 00:31:55]} {[%emt 00:00:01]} Nxf4 {[%clk
00:01:33]} {[%emt 00:00:28]} 37. Rxf4 {[%clk 00:32:23]} {[%emt 00:00:02]} Qe7
{[%clk 00:01:11]} {[%emt 00:00:53]} 38. Rg4 {[%clk 00:31:16]} {[%emt 00:01:37]}
Rh5 {[%clk 00:00:35]} {[%emt 00:01:06]} 39. Bf3 {[%clk 00:31:44]} {[%emt
00:00:02]} Re5 {[%clk 00:00:31]} {[%emt 00:00:34]} 40. Kg2 {[%clk 00:30:39]}
{[%emt 00:01:34]} Kh7 {[%clk 00:00:54]} {[%emt 00:00:08]} 41. Rg5 {[%clk
00:30:34]} {[%emt 00:00:35]} Re6 {[%clk 00:00:34]} {[%emt 00:00:50]} 42. e5
{[%clk 00:30:42]} {[%emt 00:00:23]} Ra6 {[%clk 00:00:41]} {[%emt 00:00:23]} 43.
h5 {[%clk 00:30:52]} {[%emt 00:00:19]} gxh5 {[%clk 00:00:40]} {[%emt 00:00:32]}
44. Be4 {[%clk 00:28:51]} {[%emt 00:02:31]} Kh8 {[%clk 00:00:35]} {[%emt
00:00:35]} 45. Qh4 {[%clk 00:26:15]} {[%emt 00:03:06]} Qf8 {[%clk 00:00:32]}
{[%emt 00:00:34]} 46. Qf4 {[%clk 00:26:23]} {[%emt 00:00:22]} Qe7 {[%clk
00:00:34]} {[%emt 00:00:29]} 47. Qf5 {[%clk 00:26:29]} {[%emt 00:00:23]} Rh6
{[%clk 00:00:44]} {[%emt 00:00:19]} 48. e6 {[%clk 00:23:41]} {[%emt 00:03:18]}
Qxe6 {[%clk 00:00:32]} {[%emt 00:00:42]} 49. Qxc5 {[%clk 00:24:04]} {[%emt
00:00:07]} Bg6 {[%clk 00:00:31]} {[%emt 00:00:31]} 50. Qxd4 {[%clk 00:22:35]}
{[%emt 00:01:58]} Kh7 {[%clk 00:01:00]} {[%emt 00:00:02]} 51. Qa7 {[%clk
00:22:42]} {[%emt 00:00:22]} Kh8 {[%clk 00:01:22]} {[%emt 00:00:08]} 52. Qb8
{[%clk 00:23:03]} {[%emt 00:00:10]} Kh7 {[%clk 00:01:45]} {[%emt 00:00:07]} 53.
Kh2 {[%clk 00:20:38]} {[%emt 00:02:55]} h4 {[%clk 00:00:45]} {[%emt 00:01:30]}
54. Qf8 {[%clk 00:19:00]} {[%emt 00:02:08]} b4 {[%clk 00:00:33]} {[%emt
00:00:43]} 55. Qxb4 {[%clk 00:17:22]} {[%emt 00:02:08]} Qf6 {[%clk 00:00:35]}
{[%emt 00:00:28]} 56. Qb8 {[%clk 00:17:44]} {[%emt 00:00:08]} Qxg5 {[%clk
00:00:36]} {[%emt 00:00:29]} 57. Qc7 {[%clk 00:17:44]} {[%emt 00:00:29]} Kg8
{[%clk 00:00:42]} {[%emt 00:00:24]} 58. Qc8+ {[%clk 00:17:43]} {[%emt
00:00:31]} Kg7 {[%clk 00:01:05]} {[%emt 00:00:07]} 59. Qd7+ {[%clk 00:17:15]}
{[%emt 00:00:57]} Bf7 {[%clk 00:01:28]} {[%emt 00:00:07]} 0-1

[Event "FINAL CAMPEONATO ABSOLUTO DE AJEDREZ CHILE 2018"]
[Site "CENTRO CULTURAL LO PRADO, Chile"]
[Date "2018.03.01"]
[Round "8.1"]
[White "LLORENS SEPULVEDA, Marcelo"]
[Black "VERGARA JOFRE, Felipe Andres"]
[Result "1-0"]
[TimeControl "90 minutos mas 30 segundos de incremento por movida"]
[WhiteTitle "FM"]
[BlackTitle "FM"]
[WhiteElo "2266"]
[BlackElo "2270"]

1. e4 {[%clk 01:30:54]} {[%emt 00:00:04]} c5 {[%clk 01:30:57]} {[%emt
00:00:04]} 2. Nf3 {[%clk 01:31:04]} {[%emt 00:00:19]} d6 {[%clk 01:31:25]}
{[%emt 00:00:04]} 3. Bc4 {[%clk 01:31:12]} {[%emt 00:00:22]} Nf6 {[%clk
01:31:29]} {[%emt 00:00:27]} 4. d3 {[%clk 01:31:31]} {[%emt 00:00:10]} Nc6
{[%clk 01:30:27]} {[%emt 00:01:33]} 5. c3 {[%clk 01:31:22]} {[%emt 00:00:38]}
e6 {[%clk 01:30:54]} {[%emt 00:00:04]} 6. Bb3 {[%clk 01:31:44]} {[%emt
00:00:08]} Be7 {[%clk 01:30:12]} {[%emt 00:01:12]} 7. O-O {[%clk 01:32:01]}
{[%emt 00:00:11]} O-O {[%clk 01:29:52]} {[%emt 00:00:51]} 8. Re1 {[%clk
01:32:05]} {[%emt 00:00:25]} b5 {[%clk 01:27:40]} {[%emt 00:02:43]} 9. Nbd2
{[%clk 01:31:56]} {[%emt 00:00:37]} d5 {[%clk 01:15:56]} {[%emt 00:12:17]} 10.
e5 {[%clk 01:32:04]} {[%emt 00:00:22]} Nd7 {[%clk 01:16:25]} {[%emt 00:00:02]}
11. d4 {[%clk 01:32:05]} {[%emt 00:00:28]} b4 {[%clk 01:07:38]} {[%emt
00:09:18]} 12. Nf1 {[%clk 01:32:06]} {[%emt 00:00:27]} Ba6 {[%clk 01:05:33]}
{[%emt 00:02:36]} 13. Ng3 {[%clk 01:31:32]} {[%emt 00:01:03]} Rc8 {[%clk
01:00:04]} {[%emt 00:06:01]} 14. a3 {[%clk 01:07:12]} {[%emt 00:24:50]} bxc3
{[%clk 00:55:49]} {[%emt 00:04:45]} 15. bxc3 {[%clk 01:07:36]} {[%emt
00:00:05]} cxd4 {[%clk 00:45:33]} {[%emt 00:10:47]} 16. cxd4 {[%clk 01:07:53]}
{[%emt 00:00:12]} Na5 {[%clk 00:45:58]} {[%emt 00:00:06]} 17. Bc2 {[%clk
01:01:50]} {[%emt 00:06:32]} Qc7 {[%clk 00:38:41]} {[%emt 00:07:48]} 18. Bb1
{[%clk 01:02:01]} {[%emt 00:00:19]} Qc3 {[%clk 00:29:39]} {[%emt 00:09:32]} 19.
Bd2 {[%clk 01:02:05]} {[%emt 00:00:25]} Qxa1 {[%emt 00:06:04]} 20. Bxh7+ {[%clk
01:00:59]} {[%emt 00:01:36]} Kxh7 {[%clk 00:24:35]} {[%emt 00:00:02]} 21. Qxa1
{[%clk 01:01:19]} {[%emt 00:00:08]} Nc4 {[%clk 00:23:47]} {[%emt 00:01:18]} 22.
Bb4 {[%clk 01:01:13]} {[%emt 00:00:34]} Rfe8 {[%clk 00:21:54]} {[%emt
00:02:25]} 23. Bxe7 {[%clk 01:01:13]} {[%emt 00:00:30]} Rxe7 {[%clk 00:22:23]}
{[%emt 00:00:02]} 24. Ng5 {[%clk 01:01:22]} {[%emt 00:00:21]} Kg8 {[%clk
00:22:40]} {[%emt 00:00:14]} 25. Qd1 {[%clk 01:00:03]} {[%emt 00:01:48]} Nb2
{[%clk 00:18:16]} {[%emt 00:04:55]} 26. Qh5 {[%clk 00:57:35]} {[%emt 00:02:56]}
Nf8 {[%clk 00:13:29]} {[%emt 00:05:18]} 27. h4 {[%clk 00:55:36]} {[%emt
00:02:29]} Rc2 {[%clk 00:09:48]} {[%emt 00:04:12]} 28. Qg4 {[%clk 00:43:52]}
{[%emt 00:12:14]} Nd3 {[%clk 00:04:39]} {[%emt 00:05:39]} 29. Re2 {[%clk
00:38:19]} {[%emt 00:06:02]} Rc1+ {[%clk 00:05:08]} {[%emt 00:00:01]} 30. Kh2
{[%clk 00:38:40]} {[%emt 00:00:09]} Ng6 {[%clk 00:02:16]} {[%emt 00:03:23]} 31.
h5 {[%clk 00:36:56]} {[%emt 00:02:13]} Ngf4 {[%clk 00:02:45]} 32. Rd2 {[%clk
00:36:35]} {[%emt 00:00:52]} Kf8 {[%emt 00:02:46]} 33. h6 {[%clk 00:24:26]}
{[%emt 00:12:37]} gxh6 {[%clk 00:00:38]} {[%emt 00:00:24]} 34. Nh7+ {[%clk
00:23:58]} {[%emt 00:00:57]} Ke8 {[%clk 00:01:07]} {[%emt 00:00:02]} 35. Rxd3
{[%clk 00:23:50]} {[%emt 00:00:38]} Nxd3 {[%clk 00:00:42]} {[%emt 00:00:55]} 36.
Qg8+ {[%clk 00:23:58]} {[%emt 00:00:21]} Kd7 {[%clk 00:01:12]} {[%emt
00:00:02]} 37. Nf6+ {[%clk 00:24:00]} {[%emt 00:00:28]} Kc7 {[%clk 00:01:41]}
{[%emt 00:00:01]} 38. Qf8 {[%clk 00:24:12]} {[%emt 00:00:17]} Rd7 {[%clk
00:00:55]} {[%emt 00:01:16]} 39. Nxd7 {[%clk 00:24:27]} {[%emt 00:00:14]} Kxd7
{[%clk 00:01:17]} {[%emt 00:00:08]} 40. Qd6+ {[%clk 00:24:46]} {[%emt
00:00:10]} 1-0